[Event "Live Chess"]
[Site "Chess.com"]
[Date "2024.06.02"]
[Round "-"]
[White "vincents82"]
[Black "bonantagulo"]
[Result "0-1"]
[WhiteElo "1989"]
[BlackElo "2234"]
[TimeControl "300"]
[EndTime "6:07:31 PDT"]
[Termination "bonantagulo won by resignation"]

1. e4 {[%clk 0:04:57.1]} 1... c5 {[%clk 0:04:55.5]} 2. Nf3 {[%clk 0:04:55.3]}
2... e6 {[%clk 0:04:54.8]} 3. d4 {[%clk 0:04:54.2]} 3... cxd4 {[%clk 0:04:54.7]}
4. Nxd4 {[%clk 0:04:53.4]} 4... Nc6 {[%clk 0:04:54.2]} 5. Nc3 {[%clk 0:04:52.3]}
5... Qc7 {[%clk 0:04:53.2]} 6. g3 {[%clk 0:04:50.4]} 6... a6 {[%clk 0:04:49.6]}
7. Bg2 {[%clk 0:04:48.4]} 7... Nf6 {[%clk 0:04:39.1]} 8. O-O {[%clk 0:04:45.5]}
8... Nxd4 {[%clk 0:04:35.4]} 9. Qxd4 {[%clk 0:04:43]} 9... Bc5 {[%clk
0:04:34.9]} 10. Bf4 {[%clk 0:04:42]} 10... d6 {[%clk 0:04:25.8]} 11. Qd3 {[%clk
0:04:35.7]} 11... h6 {[%clk 0:03:42.1]} 12. Rad1 {[%clk 0:04:27.4]} 12... e5
{[%clk 0:03:32]} 13. Be3 {[%clk 0:04:23.4]} 13... Bxe3 {[%clk 0:03:31.4]} 14.
Qxe3 {[%clk 0:04:22]} 14... Be6 {[%clk 0:03:26.7]} 15. Qd3 {[%clk 0:04:14.4]}
15... Rd8 {[%clk 0:03:15.2]} 16. Qd5 {[%clk 0:04:10.5]} 16... Nxd5 {[%clk
0:03:07.6]} 0-1

[Event "Live Chess"]
[Site "Chess.com"]
[Date "2024.06.02"]
[Round "-"]
[White "FlyingChessKestrel13"]
[Black "LL220284LL"]
[Result "0-1"]
[WhiteElo "2081"]
[BlackElo "2497"]
[TimeControl "300"]
[EndTime "6:07:32 PDT"]
[Termination "LL220284LL won by resignation"]

1. Nf3 {[%clk 0:04:59.2]} 1... c6 {[%clk 0:04:56.9]} 2. d4 {[%clk 0:04:58.4]}
2... g6 {[%clk 0:04:55.6]} 3. c4 {[%clk 0:04:57.7]} 3... Bg7 {[%clk 0:04:54.6]}
4. Nc3 {[%clk 0:04:57.3]} 4... d6 {[%clk 0:04:53.8]} 5. Bf4 {[%clk 0:04:56.2]}
5... Nf6 {[%clk 0:04:53.1]} 6. e3 {[%clk 0:04:55.6]} 6... Nbd7 {[%clk
0:04:52.4]} 7. Bd3 {[%clk 0:04:54.8]} 7... O-O {[%clk 0:04:51.7]} 8. Qc2 {[%clk
0:04:53.3]} 8... Qe8 {[%clk 0:04:50.6]} 9. Bg5 {[%clk 0:04:47.3]} 9... e5 {[%clk
0:04:48.6]} 10. Bxf6 {[%clk 0:04:46.1]} 10... Nxf6 {[%clk 0:04:47.3]} 11. dxe5
{[%clk 0:04:45.5]} 11... dxe5 {[%clk 0:04:46.1]} 12. O-O-O {[%clk 0:04:44.8]}
12... Bg4 {[%clk 0:04:30.9]} 13. h3 {[%clk 0:04:39.9]} 13... Bxf3 {[%clk
0:04:30.1]} 14. gxf3 {[%clk 0:04:39.1]} 14... Rd8 {[%clk 0:04:29.4]} 15. h4
{[%clk 0:04:37.2]} 15... Nh5 {[%clk 0:04:23.9]} 16. Be2 {[%clk 0:04:23.5]} 16...
Qe7 {[%clk 0:04:17]} 17. f4 {[%clk 0:04:21.2]} 17... Rxd1+ {[%clk 0:04:06.7]}
18. Bxd1 {[%clk 0:04:19.7]} 18... exf4 {[%clk 0:04:02.2]} 19. Bxh5 {[%clk
0:04:17.8]} 19... gxh5 {[%clk 0:04:01.3]} 20. exf4 {[%clk 0:04:17]} 20... Re8
{[%clk 0:03:57.4]} 21. Qd1 {[%clk 0:04:05.7]} 21... Qb4 {[%clk 0:03:39.8]} 22.
Rg1 {[%clk 0:03:54.8]} 22... Kf8 {[%clk 0:03:34.4]} 23. a3 {[%clk 0:03:49.6]}
23... Qc5 {[%clk 0:03:18.8]} 24. Rg5 {[%clk 0:03:45]} 24... Qxf2 {[%clk
0:03:02]} 25. Qd6+ {[%clk 0:03:43.8]} 25... Kg8 {[%clk 0:03:00.8]} 26. Qf6
{[%clk 0:03:29.1]} 26... Re1+ {[%clk 0:02:52.9]} 27. Nd1 {[%clk 0:03:28.2]}
27... Qe3+ {[%clk 0:02:50.5]} 28. Kc2 {[%clk 0:03:26.6]} 28... Re2+ {[%clk
0:02:47.3]} 29. Kb1 {[%clk 0:03:22.3]} 29... Qd3+ {[%clk 0:02:45.9]} 30. Ka2
{[%clk 0:03:16.9]} 30... Qxc4+ {[%clk 0:02:43.6]} 31. Kb1 {[%clk 0:03:15.9]}
31... Qd3+ {[%clk 0:02:31.9]} 32. Ka2 {[%clk 0:03:12.9]} 32... Qd5+ {[%clk
0:02:25.4]} 33. Kb1 {[%clk 0:03:07.8]} 33... Qxd1+ {[%clk 0:02:21.8]} 34. Ka2
{[%clk 0:03:07]} 34... Qd5+ {[%clk 0:02:21.3]} 35. Kb1 {[%clk 0:03:06]} 35...
Re1+ {[%clk 0:02:16.6]} 36. Kc2 {[%clk 0:03:04.7]} 36... Qd1+ {[%clk 0:02:14.7]}
37. Kc3 {[%clk 0:03:02.9]} 37... Re3+ {[%clk 0:02:13.5]} 38. Kc4 {[%clk
0:03:00.3]} 38... Qb3+ {[%clk 0:02:08.7]} 39. Kd4 {[%clk 0:02:59.1]} 39... Qxb2+
{[%clk 0:02:04.7]} 40. Kxe3 {[%clk 0:02:58.4]} 40... Qxf6 {[%clk 0:02:04.6]} 0-1

[Event "Live Chess"]
[Site "Chess.com"]
[Date "2024.06.02"]
[Round "-"]
[White "juniortay"]
[Black "Colm_Buckley"]
[Result "1-0"]
[WhiteElo "2353"]
[BlackElo "1874"]
[TimeControl "300"]
[EndTime "6:07:45 PDT"]
[Termination "juniortay won by checkmate"]

1. e4 {[%clk 0:04:57.9]} 1... e6 {[%clk 0:04:58.5]} 2. Nc3 {[%clk 0:04:56.6]}
2... d5 {[%clk 0:04:56.6]} 3. Nf3 {[%clk 0:04:56.5]} 3... dxe4 {[%clk
0:04:52.1]} 4. Nxe4 {[%clk 0:04:55.8]} 4... b6 {[%clk 0:04:51]} 5. d4 {[%clk
0:04:54]} 5... Bb7 {[%clk 0:04:49.9]} 6. Bd3 {[%clk 0:04:53.7]} 6... Nd7 {[%clk
0:04:48.3]} 7. O-O {[%clk 0:04:52.2]} 7... Ngf6 {[%clk 0:04:47.3]} 8. Neg5
{[%clk 0:04:50.7]} 8... h6 {[%clk 0:04:38.4]} 9. Nxe6 {[%clk 0:04:48.9]} 9...
fxe6 {[%clk 0:04:31.3]} 10. Bg6+ {[%clk 0:04:47.8]} 10... Ke7 {[%clk 0:04:29.1]}
11. Re1 {[%clk 0:04:47.1]} 11... Nb8 {[%clk 0:04:01.7]} 12. Qe2 {[%clk
0:04:40.1]} 12... Qd6 {[%clk 0:03:46.3]} 13. Bf4 {[%clk 0:04:22]} 13... Qc6
{[%clk 0:03:32]} 14. c4 {[%clk 0:04:13]} 14... Kd8 {[%clk 0:03:08.9]} 15. d5
{[%clk 0:04:06.8]} 15... exd5 {[%clk 0:03:07.2]} 16. cxd5 {[%clk 0:04:04.5]}
16... Nxd5 {[%clk 0:03:02.1]} 17. Ne5 {[%clk 0:03:52.7]} 17... Qf6 {[%clk
0:02:47.4]} 18. Nf7+ {[%clk 0:03:47.4]} 18... Kc8 {[%clk 0:02:42]} 19. Qe8+
{[%clk 0:03:43.4]} 19... Qd8 {[%clk 0:02:37.8]} 20. Qxd8# {[%clk 0:03:42.1]} 1-0

[Event "Live Chess"]
[Site "Chess.com"]
[Date "2024.06.02"]
[Round "-"]
[White "seasidecastle27"]
[Black "KyryloPoluliakh"]
[Result "1-0"]
[WhiteElo "1944"]
[BlackElo "1529"]
[TimeControl "300"]
[EndTime "6:08:01 PDT"]
[Termination "seasidecastle27 won by resignation"]

1. d4 {[%clk 0:04:42.8]} 1... Nf6 {[%clk 0:04:56]} 2. Nf3 {[%clk 0:04:41.8]}
2... g6 {[%clk 0:04:55]} 3. Bg5 {[%clk 0:04:40.1]} 3... Bg7 {[%clk 0:04:53.6]}
4. Nbd2 {[%clk 0:04:38.9]} 4... O-O {[%clk 0:04:52]} 5. e4 {[%clk 0:04:37.5]}
5... d6 {[%clk 0:04:50.6]} 6. Bd3 {[%clk 0:04:36.2]} 6... Nc6 {[%clk 0:04:47]}
7. c3 {[%clk 0:04:34.3]} 7... e5 {[%clk 0:04:44]} 8. d5 {[%clk 0:04:31.8]} 8...
Ne7 {[%clk 0:04:42]} 9. Qe2 {[%clk 0:04:30.4]} 9... Ne8 {[%clk 0:04:40.4]} 10.
h4 {[%clk 0:04:24.6]} 10... f6 {[%clk 0:04:32.7]} 11. Be3 {[%clk 0:04:22.8]}
11... f5 {[%clk 0:04:30]} 12. exf5 {[%clk 0:04:16]} 12... gxf5 {[%clk
0:04:24.5]} 13. Bg5 {[%clk 0:04:12.9]} 13... e4 {[%clk 0:04:19.8]} 14. O-O-O
{[%clk 0:04:07.5]} 14... exd3 {[%clk 0:04:16.3]} 15. Qxe7 {[%clk 0:04:06]} 15...
Qxe7 {[%clk 0:04:10.8]} 16. Bxe7 {[%clk 0:04:04.1]} 16... Rf7 {[%clk 0:04:09.3]}
17. Rde1 {[%clk 0:04:01.8]} 17... Nf6 {[%clk 0:04:02.4]} 18. Ng5 {[%clk
0:03:57.8]} 18... Rxe7 {[%clk 0:03:50.4]} 19. Rxe7 {[%clk 0:03:54.4]} 19... Nxd5
{[%clk 0:03:49.7]} 20. Re8+ {[%clk 0:03:48.9]} 20... Bf8 {[%clk 0:03:47]} 21.
Rhe1 {[%clk 0:03:33.5]} 21... h6 {[%clk 0:03:45.3]} 22. Ne6 {[%clk 0:03:28.2]}
22... Bxe6 {[%clk 0:03:41.9]} 23. Rxa8 {[%clk 0:03:25.4]} 23... Nf4 {[%clk
0:03:35.4]} 24. g3 {[%clk 0:03:12.9]} 24... Ne2+ {[%clk 0:03:33.9]} 25. Kd1
{[%clk 0:03:10.8]} 25... Bxa2 {[%clk 0:03:32.2]} 26. Rxe2 {[%clk 0:03:03.4]}
26... dxe2+ {[%clk 0:03:28.9]} 27. Kxe2 {[%clk 0:03:02.7]} 27... Bd5 {[%clk
0:03:25.4]} 28. Nf3 {[%clk 0:02:56.6]} 28... a6 {[%clk 0:03:22.9]} 29. Nd4
{[%clk 0:02:53.2]} 29... Kf7 {[%clk 0:03:12.8]} 30. Nxf5 {[%clk 0:02:49.9]}
30... Be6 {[%clk 0:03:04.8]} 31. Ne3 {[%clk 0:02:45.3]} 31... Bg7 {[%clk
0:03:00.7]} 32. Rb8 {[%clk 0:02:42.3]} 32... b6 {[%clk 0:02:56.7]} 33. Rb7
{[%clk 0:02:38.4]} 33... Be5 {[%clk 0:02:42.9]} 34. Rxc7+ {[%clk 0:02:36.5]}
34... Kf6 {[%clk 0:02:41.1]} 35. f4 {[%clk 0:02:32.8]} 35... d5 {[%clk 0:02:34]}
36. fxe5+ {[%clk 0:02:31]} 36... Kxe5 {[%clk 0:02:31.9]} 37. Rb7 {[%clk
0:02:26.4]} 1-0

[Event "Live Chess"]
[Site "Chess.com"]
[Date "2024.06.02"]
[Round "-"]
[White "Crowded_House"]
[Black "ZombieChainsaw"]
[Result "0-1"]
[WhiteElo "1627"]
[BlackElo "1798"]
[TimeControl "300"]
[EndTime "6:08:05 PDT"]
[Termination "ZombieChainsaw won by resignation"]

1. d4 {[%clk 0:04:55.2]} 1... g6 {[%clk 0:04:58.9]} 2. Bg5 {[%clk 0:04:53.2]}
2... h6 {[%clk 0:04:57.5]} 3. Bh4 {[%clk 0:04:51]} 3... Bg7 {[%clk 0:04:54.9]}
4. c3 {[%clk 0:04:48.9]} 4... Nf6 {[%clk 0:04:53.5]} 5. e3 {[%clk 0:04:47.1]}
5... O-O {[%clk 0:04:52.3]} 6. Nf3 {[%clk 0:04:45.5]} 6... d6 {[%clk 0:04:51.6]}
7. Bd3 {[%clk 0:04:43.8]} 7... Nbd7 {[%clk 0:04:48.2]} 8. Nbd2 {[%clk
0:04:42.7]} 8... c6 {[%clk 0:04:45.5]} 9. Qc2 {[%clk 0:04:41.2]} 9... Qe8 {[%clk
0:04:37.2]} 10. O-O {[%clk 0:04:39.1]} 10... e5 {[%clk 0:04:28]} 11. dxe5 {[%clk
0:04:37.3]} 11... Nxe5 {[%clk 0:04:27.2]} 12. Nxe5 {[%clk 0:04:35.3]} 12... dxe5
{[%clk 0:04:27.1]} 13. Ne4 {[%clk 0:04:25.5]} 13... Nxe4 {[%clk 0:04:22]} 14.
Bxe4 {[%clk 0:04:24.5]} 14... f5 {[%clk 0:04:21]} 15. Bd3 {[%clk 0:04:20]} 15...
Be6 {[%clk 0:04:18.5]} 16. f3 {[%clk 0:04:00.6]} 16... g5 {[%clk 0:04:16.1]} 17.
Bf2 {[%clk 0:03:58.5]} 17... Qh5 {[%clk 0:04:07]} 18. Qe2 {[%clk 0:03:50.1]}
18... Rad8 {[%clk 0:03:58.3]} 19. Bc4 {[%clk 0:03:48.5]} 19... Qg6 {[%clk
0:03:56.7]} 20. Rfd1 {[%clk 0:03:43]} 20... b5 {[%clk 0:03:51.8]} 21. Bb3 {[%clk
0:03:37.3]} 21... Qf7 {[%clk 0:03:38.6]} 22. Bxe6 {[%clk 0:03:34.2]} 22... Qxe6
{[%clk 0:03:38.5]} 23. Rxd8 {[%clk 0:03:32.7]} 23... Rxd8 {[%clk 0:03:37.5]} 24.
a3 {[%clk 0:03:28.2]} 24... Qd5 {[%clk 0:03:18.6]} 25. Be1 {[%clk 0:03:23.6]}
25... a6 {[%clk 0:02:56.2]} 26. Rc1 {[%clk 0:03:21]} 26... e4 {[%clk 0:02:46.2]}
27. fxe4 {[%clk 0:03:15.8]} 27... fxe4 {[%clk 0:02:39.4]} 28. Rc2 {[%clk
0:03:12.2]} 28... Qd3 {[%clk 0:02:25]} 29. Rd2 {[%clk 0:03:06.1]} 29... Qxe2
{[%clk 0:02:21]} 30. Rxe2 {[%clk 0:03:05.4]} 30... Be5 {[%clk 0:02:09.1]} 31.
Rd2 {[%clk 0:03:01.7]} 31... Rxd2 {[%clk 0:02:06.4]} 32. Bxd2 {[%clk 0:03:01.1]}
32... Kf7 {[%clk 0:02:06.1]} 33. h3 {[%clk 0:02:53.5]} 33... Ke6 {[%clk
0:02:04.6]} 34. Kf2 {[%clk 0:02:52.6]} 34... Kd5 {[%clk 0:02:03.8]} 35. b3
{[%clk 0:02:46]} 35... a5 {[%clk 0:01:57.9]} 36. g4 {[%clk 0:02:41.1]} 36... a4
{[%clk 0:01:56.9]} 37. bxa4 {[%clk 0:02:37]} 37... bxa4 {[%clk 0:01:56.8]} 38.
Ke2 {[%clk 0:02:32.1]} 38... Kc4 {[%clk 0:01:55.9]} 39. Kd1 {[%clk 0:02:28.2]}
39... Bxc3 {[%clk 0:01:54.9]} 40. Kc2 {[%clk 0:02:27.3]} 40... Bxd2 {[%clk
0:01:53.5]} 41. Kxd2 {[%clk 0:02:26.8]} 41... Kb3 {[%clk 0:01:51.5]} 42. Kc1
{[%clk 0:02:25.3]} 42... Kc3 {[%clk 0:01:46.8]} 43. Kb1 {[%clk 0:02:21]} 43...
Kd2 {[%clk 0:01:44.7]} 44. Kb2 {[%clk 0:02:20.1]} 44... c5 {[%clk 0:01:44.2]}
45. Ka2 {[%clk 0:02:17.7]} 45... c4 {[%clk 0:01:43.3]} 46. Kb2 {[%clk 0:02:17]}
46... c3+ {[%clk 0:01:42.6]} 47. Kb1 {[%clk 0:02:16.7]} 0-1

[Event "Live Chess"]
[Site "Chess.com"]
[Date "2024.06.02"]
[Round "-"]
[White "r0ad_t0-gm"]
[Black "Isambard_Thomas"]
[Result "1-0"]
[WhiteElo "2300"]
[BlackElo "2193"]
[TimeControl "300"]
[EndTime "6:08:18 PDT"]
[Termination "r0ad_t0-gm won by resignation"]

1. Nf3 {[%clk 0:04:57.7]} 1... d5 {[%clk 0:04:59.1]} 2. g3 {[%clk 0:04:56.9]}
2... Bg4 {[%clk 0:04:58]} 3. Bg2 {[%clk 0:04:56.1]} 3... Nf6 {[%clk 0:04:57.1]}
4. O-O {[%clk 0:04:54.7]} 4... e6 {[%clk 0:04:56.8]} 5. h3 {[%clk 0:04:52.2]}
5... Bf5 {[%clk 0:04:55.2]} 6. c4 {[%clk 0:04:49.9]} 6... c6 {[%clk 0:04:54.1]}
7. Qb3 {[%clk 0:04:47.7]} 7... Qc8 {[%clk 0:04:46]} 8. d3 {[%clk 0:04:40.5]}
8... Bd6 {[%clk 0:04:43.7]} 9. Nh4 {[%clk 0:04:37.3]} 9... Bg6 {[%clk
0:04:40.4]} 10. cxd5 {[%clk 0:04:35.9]} 10... exd5 {[%clk 0:04:39.2]} 11. e4
{[%clk 0:04:28.8]} 11... dxe4 {[%clk 0:04:22.4]} 12. dxe4 {[%clk 0:04:27.8]}
12... Nbd7 {[%clk 0:04:21]} 13. Nc3 {[%clk 0:04:11.5]} 13... Nc5 {[%clk
0:03:58.7]} 14. Qc2 {[%clk 0:04:10.3]} 14... O-O {[%clk 0:03:49.9]} 15. Be3
{[%clk 0:04:07.4]} 15... Ncd7 {[%clk 0:03:42.6]} 16. Rad1 {[%clk 0:04:04.5]}
16... Bc7 {[%clk 0:03:35.9]} 17. Nf5 {[%clk 0:03:56.9]} 17... Re8 {[%clk
0:03:29.5]} 18. Nd6 {[%clk 0:03:44.1]} 18... Bxd6 {[%clk 0:03:27.7]} 19. Rxd6
{[%clk 0:03:44]} 19... Ne5 {[%clk 0:03:11.4]} 20. Ne2 {[%clk 0:03:25.9]} 20...
Qc7 {[%clk 0:03:06.9]} 21. Rfd1 {[%clk 0:03:23.9]} 21... Bxe4 {[%clk 0:02:55]}
22. Bxe4 {[%clk 0:03:15.3]} 1-0

[Event "Live Chess"]
[Site "Chess.com"]
[Date "2024.06.02"]
[Round "-"]
[White "FlyingChessKestrel13"]
[Black "V1nas"]
[Result "1-0"]
[WhiteElo "2081"]
[BlackElo "1315"]
[TimeControl "300"]
[EndTime "6:08:46 PDT"]
[Termination "FlyingChessKestrel13 won by resignation"]

1. e4 {[%clk 0:04:57.8]} 1... Nf6 {[%clk 0:04:58.1]} 2. Nf3 {[%clk 0:04:57.7]}
2... Nxe4 {[%clk 0:04:55.9]} 3. Bc4 {[%clk 0:04:56.8]} 3... d5 {[%clk
0:04:55.1]} 4. Bb3 {[%clk 0:04:55.8]} 4... c5 {[%clk 0:04:52]} 5. d3 {[%clk
0:04:54.9]} 5... Nf6 {[%clk 0:04:46.8]} 6. O-O {[%clk 0:04:54.2]} 6... e6 {[%clk
0:04:44.3]} 7. Re1 {[%clk 0:04:52.9]} 7... Bd6 {[%clk 0:04:43.8]} 8. Nc3 {[%clk
0:04:51.3]} 8... O-O {[%clk 0:04:41.8]} 9. Nb5 {[%clk 0:04:49.8]} 9... a6 {[%clk
0:04:34]} 10. Nxd6 {[%clk 0:04:47.3]} 10... Qxd6 {[%clk 0:04:33.9]} 11. c4
{[%clk 0:04:45.7]} 11... d4 {[%clk 0:04:32.2]} 12. Bg5 {[%clk 0:04:43.7]} 12...
Nfd7 {[%clk 0:04:26]} 13. Bh4 {[%clk 0:04:42.1]} 13... a5 {[%clk 0:04:21.4]} 14.
Bg3 {[%clk 0:04:40.7]} 14... a4 {[%clk 0:04:20.6]} 15. Bxd6 {[%clk 0:04:39.1]}
1-0

[Event "Live Chess"]
[Site "Chess.com"]
[Date "2024.06.02"]
[Round "-"]
[White "ClassyChameleon"]
[Black "McCarthyStone"]
[Result "0-1"]
[WhiteElo "1547"]
[BlackElo "2484"]
[TimeControl "300"]
[EndTime "6:08:52 PDT"]
[Termination "McCarthyStone won by resignation"]

1. e4 {[%clk 0:04:58.7]} 1... d5 {[%clk 0:04:58.6]} 2. exd5 {[%clk 0:04:54.4]}
2... Qxd5 {[%clk 0:04:58.5]} 3. Nc3 {[%clk 0:04:53.8]} 3... Qe5+ {[%clk
0:04:55.4]} 4. Be2 {[%clk 0:04:52.3]} 4... c6 {[%clk 0:04:54.7]} 5. Nf3 {[%clk
0:04:51.7]} 5... Qc7 {[%clk 0:04:53.7]} 6. O-O {[%clk 0:04:50.8]} 6... Bf5
{[%clk 0:04:52.7]} 7. d4 {[%clk 0:04:47.9]} 7... e6 {[%clk 0:04:51.1]} 8. Bd3
{[%clk 0:04:46.1]} 8... Bg4 {[%clk 0:04:49.3]} 9. h3 {[%clk 0:04:43.9]} 9... Bh5
{[%clk 0:04:48.6]} 10. Be3 {[%clk 0:04:38.2]} 10... Nf6 {[%clk 0:04:42.9]} 11.
Be2 {[%clk 0:04:35.8]} 11... Bd6 {[%clk 0:04:41.2]} 12. Ne5 {[%clk 0:04:34.2]}
12... Bxe2 {[%clk 0:04:37.8]} 13. Qxe2 {[%clk 0:04:34.1]} 13... Bxe5 {[%clk
0:04:37]} 14. dxe5 {[%clk 0:04:34]} 14... Qxe5 {[%clk 0:04:36.9]} 15. Rad1
{[%clk 0:04:23.8]} 15... Nbd7 {[%clk 0:04:35.7]} 16. Na4 {[%clk 0:04:15.1]}
16... O-O {[%clk 0:04:31.9]} 17. b3 {[%clk 0:04:13.3]} 17... b5 {[%clk
0:04:27.7]} 18. Bd4 {[%clk 0:04:02.7]} 18... Qxe2 {[%clk 0:04:26.4]} 0-1

[Event "Live Chess"]
[Site "Chess.com"]
[Date "2024.06.02"]
[Round "-"]
[White "grillage"]
[Black "ProfPoisson"]
[Result "1-0"]
[WhiteElo "1863"]
[BlackElo "1319"]
[TimeControl "300"]
[EndTime "6:09:16 PDT"]
[Termination "grillage won by resignation"]

1. d4 {[%clk 0:04:55.1]} 1... e6 {[%clk 0:04:58.6]} 2. Nf3 {[%clk 0:04:53.4]}
2... f5 {[%clk 0:04:57]} 3. g3 {[%clk 0:04:48.1]} 3... Nf6 {[%clk 0:04:56.1]} 4.
Bg2 {[%clk 0:04:47.6]} 4... Be7 {[%clk 0:04:54.6]} 5. O-O {[%clk 0:04:47]} 5...
d6 {[%clk 0:04:54.1]} 6. b3 {[%clk 0:04:41.3]} 6... O-O {[%clk 0:04:53.4]} 7.
Bb2 {[%clk 0:04:40.9]} 7... Ne4 {[%clk 0:04:44.1]} 8. Nbd2 {[%clk 0:04:39.5]}
8... Nxd2 {[%clk 0:04:39.3]} 9. Qxd2 {[%clk 0:04:38.3]} 9... Bf6 {[%clk
0:04:39]} 10. c4 {[%clk 0:04:32.2]} 10... a5 {[%clk 0:04:35.9]} 11. a3 {[%clk
0:04:26.6]} 11... Qe8 {[%clk 0:04:34.3]} 12. Rfe1 {[%clk 0:04:22.1]} 12... Nd7
{[%clk 0:04:31.6]} 13. Qc2 {[%clk 0:04:18.2]} 13... Nb6 {[%clk 0:04:18.6]} 14.
Rad1 {[%clk 0:04:14.3]} 14... c5 {[%clk 0:04:10.4]} 15. dxc5 {[%clk 0:04:09.8]}
15... dxc5 {[%clk 0:04:08.9]} 16. Bxf6 {[%clk 0:04:04.5]} 16... Rxf6 {[%clk
0:04:05.6]} 17. Ne5 {[%clk 0:04:01.2]} 17... Nd7 {[%clk 0:03:56.1]} 18. Nxd7
{[%clk 0:03:57.7]} 18... Bxd7 {[%clk 0:03:53.7]} 19. Bxb7 {[%clk 0:03:50.1]}
19... Rb8 {[%clk 0:03:52.2]} 20. Bg2 {[%clk 0:03:47]} 20... Rh6 {[%clk
0:03:47.2]} 21. Rd6 {[%clk 0:03:33.1]} 21... Qh5 {[%clk 0:03:43.4]} 22. Rxd7
{[%clk 0:03:24.1]} 22... Qxh2+ {[%clk 0:03:39.7]} 23. Kf1 {[%clk 0:03:22.8]}
23... Rf8 {[%clk 0:03:26.9]} 24. Qd3 {[%clk 0:03:19.2]} 24... f4 {[%clk
0:03:16.8]} 25. Rd8 {[%clk 0:03:11.5]} 25... fxg3 {[%clk 0:03:13.2]} 26. Rxf8+
{[%clk 0:03:09.7]} 26... Kxf8 {[%clk 0:03:09.1]} 27. Qxg3 {[%clk 0:03:08.8]}
27... Qh5 {[%clk 0:02:57.4]} 28. Qf3+ {[%clk 0:03:07.7]} 28... Ke7 {[%clk
0:02:41.3]} 29. Qxh5 {[%clk 0:03:06.5]} 29... Rxh5 {[%clk 0:02:40.2]} 30. e3
{[%clk 0:03:05.3]} 30... Re5 {[%clk 0:02:37.3]} 31. Rd1 {[%clk 0:03:03.6]} 31...
g5 {[%clk 0:02:36.3]} 32. Bc6 {[%clk 0:02:53.7]} 32... Kf6 {[%clk 0:02:31.7]}
33. Rd7 {[%clk 0:02:52.1]} 33... h5 {[%clk 0:02:30]} 34. Rh7 {[%clk 0:02:49.2]}
34... h4 {[%clk 0:02:28.2]} 35. Kg2 {[%clk 0:02:46.3]} 35... Kf5 {[%clk
0:02:20.3]} 36. Ra7 {[%clk 0:02:43.1]} 36... Kg4 {[%clk 0:02:18.2]} 37. Bf3+
{[%clk 0:02:37.6]} 37... Kf5 {[%clk 0:02:14.4]} 38. Rxa5 {[%clk 0:02:33.7]}
38... g4 {[%clk 0:02:11.8]} 39. Bd1 {[%clk 0:02:30.3]} 39... h3+ {[%clk
0:01:58.3]} 40. Kg3 {[%clk 0:02:27.6]} 40... Kg5 {[%clk 0:01:53.6]} 41. b4
{[%clk 0:02:24.1]} 41... Re4 {[%clk 0:01:34.8]} 42. Rxc5+ {[%clk 0:02:21.9]}
42... e5 {[%clk 0:01:32.3]} 43. b5 {[%clk 0:02:13.9]} 43... Kf5 {[%clk
0:01:14.1]} 44. Bc2 {[%clk 0:02:12.9]} 44... h2 {[%clk 0:01:11.1]} 45. Kxh2
{[%clk 0:02:11.1]} 45... g3+ {[%clk 0:01:10]} 46. Kxg3 {[%clk 0:02:09]} 46...
Ke6 {[%clk 0:01:09.2]} 47. Bxe4 {[%clk 0:02:08.1]} 1-0

[Event "Live Chess"]
[Site "Chess.com"]
[Date "2024.06.02"]
[Round "-"]
[White "missedJariChance"]
[Black "wadsy27"]
[Result "0-1"]
[WhiteElo "1388"]
[BlackElo "2581"]
[TimeControl "300"]
[EndTime "6:09:29 PDT"]
[Termination "wadsy27 won by resignation"]

1. b3 {[%clk 0:04:56.3]} 1... d5 {[%clk 0:04:58.2]} 2. Bb2 {[%clk 0:04:53.9]}
2... c6 {[%clk 0:04:58.1]} 3. e3 {[%clk 0:04:51.3]} 3... Nf6 {[%clk 0:04:58]} 4.
Nf3 {[%clk 0:04:49.2]} 4... Bf5 {[%clk 0:04:55.3]} 5. c4 {[%clk 0:04:45.2]} 5...
e6 {[%clk 0:04:54.5]} 6. Be2 {[%clk 0:04:39.8]} 6... h6 {[%clk 0:04:53.2]} 7. d3
{[%clk 0:04:27.9]} 7... Be7 {[%clk 0:04:48.8]} 8. Nbd2 {[%clk 0:04:22.1]} 8...
O-O {[%clk 0:04:46.4]} 9. Rc1 {[%clk 0:04:11]} 9... a5 {[%clk 0:04:44.8]} 10.
cxd5 {[%clk 0:04:02.2]} 10... exd5 {[%clk 0:04:43.4]} 11. Nd4 {[%clk 0:03:53.1]}
11... Bh7 {[%clk 0:04:41.7]} 12. N2f3 {[%clk 0:03:43.1]} 12... Nbd7 {[%clk
0:04:40.5]} 13. O-O {[%clk 0:03:41.7]} 13... a4 {[%clk 0:04:39.7]} 14. bxa4
{[%clk 0:03:29.1]} 14... Qa5 {[%clk 0:04:38]} 15. Ra1 {[%clk 0:02:36.6]} 15...
Qxa4 {[%clk 0:04:34.6]} 16. Qxa4 {[%clk 0:02:35]} 16... Rxa4 {[%clk 0:04:34.5]}
17. Rfb1 {[%clk 0:02:29]} 17... Rfa8 {[%clk 0:04:29.9]} 18. h4 {[%clk
0:02:22.6]} 18... Nc5 {[%clk 0:04:28.2]} 19. Ne5 {[%clk 0:02:12.1]} 19... Rxa2
{[%clk 0:04:25.5]} 20. Bc3 {[%clk 0:01:51]} 20... Rxa1 {[%clk 0:04:21]} 21. Rxa1
{[%clk 0:01:49.5]} 21... Rxa1+ {[%clk 0:04:20.6]} 22. Bxa1 {[%clk 0:01:46.9]}
22... Bd6 {[%clk 0:04:18.6]} 23. Nef3 {[%clk 0:01:40]} 23... Bxd3 {[%clk
0:04:15]} 24. Bxd3 {[%clk 0:01:24.4]} 24... Nxd3 {[%clk 0:04:14.9]} 25. Nf5
{[%clk 0:01:22.4]} 25... Bf8 {[%clk 0:04:13.6]} 26. N3d4 {[%clk 0:01:08.4]}
26... Ne4 {[%clk 0:04:10.8]} 27. f3 {[%clk 0:00:41.7]} 27... Nd6 {[%clk
0:04:07.4]} 28. Bc3 {[%clk 0:00:33.5]} 28... Nxf5 {[%clk 0:04:05.5]} 29. Nxf5
{[%clk 0:00:32.1]} 29... g6 {[%clk 0:04:05.1]} 30. Nd4 {[%clk 0:00:28.1]} 30...
Bc5 {[%clk 0:04:03.4]} 31. Kh2 {[%clk 0:00:18.2]} 31... Bxd4 {[%clk 0:04:02]}
32. Bxd4 {[%clk 0:00:17]} 32... c5 {[%clk 0:04:00.9]} 33. Bf6 {[%clk 0:00:11.8]}
33... b5 {[%clk 0:03:59.6]} 0-1